[Event "BPB Limburg Open 2019 Group A"]
[Site "Maastricht, Netherlands"]
[Date "2019.06.09"]
[Round "5.5"]
[White "Klein, Felix"]
[Black "Sadzikowski, Daniel"]
[Result "0-1"]
[TimeControl "2h + 15 sec/move"]
[WhiteFideId "24600458"]
[BlackFideId "1132253"]
[WhiteElo "2328"]
[BlackElo "2510"]

1. e4 {[%clk 01:55:33]} {[%emt 00:04:57]} e5 {[%clk 02:00:18]} {[%emt
00:00:12]} 2. Nf3 {[%clk 01:55:37]} {[%emt 00:00:10]} Nc6 {[%clk 02:00:28]}
{[%emt 00:00:05]} 3. Bb5 {[%clk 01:55:49]} {[%emt 00:00:04]} a6 {[%clk
02:00:39]} {[%emt 00:00:05]} 4. Ba4 {[%clk 01:56:01]} {[%emt 00:00:03]} Nf6
{[%clk 02:00:49]} {[%emt 00:00:04]} 5. O-O {[%clk 01:56:08]} {[%emt 00:00:08]}
Be7 {[%clk 02:00:54]} {[%emt 00:00:09]} 6. Re1 {[%clk 01:56:11]} {[%emt
00:00:12]} b5 {[%clk 02:01:04]} {[%emt 00:00:05]} 7. Bb3 {[%clk 01:56:23]}
{[%emt 00:00:04]} d6 {[%clk 02:01:12]} {[%emt 00:00:06]} 8. c3 {[%clk
01:56:08]} {[%emt 00:00:31]} O-O {[%clk 02:01:20]} {[%emt 00:00:07]} 9. d4
{[%clk 01:55:26]} {[%emt 00:00:58]} Bg4 {[%clk 02:01:28]} {[%emt 00:00:07]} 10.
Be3 {[%clk 01:55:34]} {[%emt 00:00:07]} Bh5 {[%clk 02:00:28]} {[%emt 00:01:15]}
11. Nbd2 {[%clk 01:48:16]} {[%emt 00:07:34]} exd4 {[%clk 01:58:11]} {[%emt
00:02:31]} 12. cxd4 {[%clk 01:48:10]} {[%emt 00:00:20]} Na5 {[%clk 01:58:24]}
{[%emt 00:00:02]} 13. Bc2 {[%clk 01:47:29]} {[%emt 00:00:56]} c5 {[%clk
01:58:26]} {[%emt 00:00:08]} 14. d5 {[%clk 01:38:42]} {[%emt 00:09:07]} Ng4
{[%clk 01:49:28]} {[%emt 00:09:12]} 15. Bf4 {[%clk 01:36:54]} {[%emt 00:02:04]}
Ne5 {[%clk 01:48:40]} {[%emt 00:01:03]} 16. b3 {[%clk 01:34:51]} {[%emt
00:02:19]} Bf6 {[%clk 01:44:41]} {[%emt 00:04:13]} 17. Rc1 {[%clk 01:30:33]}
{[%emt 00:04:34]} c4 {[%clk 01:44:43]} {[%emt 00:00:12]} 18. Nf1 {[%clk
01:25:04]} {[%emt 00:05:44]} Bxf3 {[%clk 01:33:56]} {[%emt 00:11:02]} 19. gxf3
{[%clk 01:25:09]} {[%emt 00:00:10]} Ng6 {[%clk 01:26:54]} {[%emt 00:07:16]} 20.
Be3 {[%clk 01:19:08]} {[%emt 00:06:16]} Bc3 {[%clk 01:18:27]} {[%emt 00:08:42]}
21. Ng3 {[%clk 01:09:05]} {[%emt 00:10:19]} Bxe1 {[%clk 01:13:32]} {[%emt
00:05:10]} 22. Qxe1 {[%clk 01:07:59]} {[%emt 00:01:22]} Nh4 {[%clk 01:13:41]}
{[%emt 00:00:05]} 23. Qe2 {[%clk 01:06:51]} {[%emt 00:01:24]} cxb3 {[%clk
00:57:59]} {[%emt 00:15:57]} 24. axb3 {[%clk 01:06:53]} {[%emt 00:00:13]} Rc8
{[%clk 00:57:19]} {[%emt 00:00:54]} 25. f4 {[%clk 01:05:42]} {[%emt 00:01:26]}
Rc3 {[%clk 00:53:13]} {[%emt 00:04:21]} 26. Bd4 {[%clk 00:58:56]} {[%emt
00:07:01]} Nf3+ {[%clk 00:52:27]} {[%emt 00:01:00]} 27. Be3 {[%emt 00:06:52]}
Nh4 {[%emt 00:00:02]} 0-1

[Event "BPB Limburg Open 2019 Group A"]
[Site "Maastricht, Netherlands"]
[Date "2019.06.09"]
[Round "5.6"]
[White "Beerdsen, Thomas"]
[Black "Sarvadh, Sathiaram"]
[Result "1-0"]
[TimeControl "2h + 15 sec/move"]
[WhiteFideId "1030108"]
[BlackFideId "46636579"]
[WhiteElo "2488"]
[BlackElo "2103"]

1. e4 {[%clk 01:58:53]} {[%emt 00:01:35]} e6 {[%clk 02:00:20]} {[%emt
00:00:11]} 2. d4 {[%clk 01:59:02]} {[%emt 00:00:05]} d5 {[%clk 02:00:28]}
{[%emt 00:00:07]} 3. Nc3 {[%clk 01:59:13]} {[%emt 00:00:04]} Bb4 {[%clk
02:00:36]} {[%emt 00:00:06]} 4. e5 {[%clk 01:59:24]} {[%emt 00:00:04]} c5
{[%clk 02:00:46]} {[%emt 00:00:05]} 5. a3 {[%clk 01:59:35]} {[%emt 00:00:04]}
Bxc3+ {[%clk 02:00:57]} {[%emt 00:00:04]} 6. bxc3 {[%clk 01:59:46]} {[%emt
00:00:04]} Ne7 {[%clk 02:01:06]} {[%emt 00:00:06]} 7. Qg4 {[%clk 01:59:57]}
{[%emt 00:00:04]} Qc7 {[%clk 02:01:14]} {[%emt 00:00:07]} 8. Qxg7 {[%clk
02:00:08]} {[%emt 00:00:04]} Rg8 {[%clk 02:01:25]} {[%emt 00:00:04]} 9. Qxh7
{[%clk 02:00:18]} {[%emt 00:00:05]} cxd4 {[%clk 02:01:35]} {[%emt 00:00:06]} 10.
Qd3 {[%clk 02:00:30]} {[%emt 00:00:03]} dxc3 {[%clk 02:01:42]} {[%emt
00:00:08]} 11. Ne2 {[%clk 02:00:40]} {[%emt 00:00:04]} Nbc6 {[%clk 02:01:39]}
{[%emt 00:00:18]} 12. Qxc3 {[%clk 02:00:50]} {[%emt 00:00:05]} Qxe5 {[%clk
02:01:11]} {[%emt 00:00:43]} 13. Qxe5 {[%clk 02:01:02]} {[%emt 00:00:03]} Nxe5
{[%clk 02:01:19]} {[%emt 00:00:07]} 14. Ng3 {[%clk 02:01:14]} {[%emt 00:00:02]}
f6 {[%clk 01:47:33]} {[%emt 00:14:01]} 15. Nh5 {[%clk 02:00:40]} {[%emt
00:00:49]} Kf7 {[%clk 01:47:34]} {[%emt 00:00:13]} 16. Bb2 {[%clk 02:00:07]}
{[%emt 00:00:48]} N7g6 {[%clk 01:43:21]} {[%emt 00:04:29]} 17. f4 {[%clk
01:53:36]} {[%emt 00:06:45]} Ng4 {[%clk 01:40:49]} {[%emt 00:02:45]} 18. Be2
{[%clk 01:50:59]} {[%emt 00:02:54]} e5 {[%clk 01:33:24]} {[%emt 00:07:41]} 19.
fxe5 {[%clk 01:49:05]} {[%emt 00:02:09]} N6xe5 {[%clk 01:28:45]} {[%emt
00:04:54]} 20. O-O {[%clk 01:44:54]} {[%emt 00:04:26]} Rg5 {[%clk 01:18:31]}
{[%emt 00:10:29]} 21. Bxe5 {[%clk 01:41:19]} {[%emt 00:03:51]} Nxe5 {[%clk
01:08:46]} {[%emt 00:10:00]} 22. Nxf6 {[%clk 01:40:36]} {[%emt 00:00:58]} Kg7
{[%clk 01:04:28]} {[%emt 00:04:31]} 23. Nxd5 {[%clk 01:38:36]} {[%emt
00:02:16]} Bg4 {[%clk 01:03:34]} {[%emt 00:01:09]} 24. Bxg4 {[%clk 01:38:27]}
{[%emt 00:00:25]} Nxg4 {[%clk 01:03:41]} {[%emt 00:00:08]} 25. Nc7 {[%clk
01:38:39]} {[%emt 00:00:04]} Ne3 {[%clk 01:01:13]} {[%emt 00:02:43]} 26. Nxa8
{[%clk 01:38:05]} {[%emt 00:00:48]} Nxf1 {[%clk 01:01:07]} {[%emt 00:00:21]} 27.
Nc7 {[%clk 01:37:55]} {[%emt 00:00:24]} 1-0

[Event "BPB Limburg Open 2019 Group A"]
[Site "Maastricht, Netherlands"]
[Date "2019.06.09"]
[Round "5.7"]
[White "Haast, Mark"]
[Black "Schoppen, Casper"]
[Result "1/2-1/2"]
[TimeControl "2h + 15 sec/move"]
[WhiteFideId "1021133"]
[BlackFideId "1046730"]
[WhiteElo "2392"]
[BlackElo "2464"]

1. c4 {[%clk 01:56:39]} {[%emt 00:03:40]} e5 {[%clk 01:51:52]} {[%emt
00:08:40]} 2. g3 {[%clk 01:56:20]} {[%emt 00:00:43]} Nf6 {[%clk 01:52:00]}
{[%emt 00:00:08]} 3. Bg2 {[%clk 01:56:21]} {[%emt 00:00:13]} d5 {[%clk
01:52:00]} {[%emt 00:00:15]} 4. cxd5 {[%clk 01:56:25]} {[%emt 00:00:11]} Nxd5
{[%clk 01:52:11]} {[%emt 00:00:05]} 5. Nf3 {[%clk 01:56:23]} {[%emt 00:00:17]}
Nc6 {[%clk 01:52:16]} {[%emt 00:00:09]} 6. O-O {[%clk 01:56:22]} {[%emt
00:00:15]} Be7 {[%clk 01:51:30]} {[%emt 00:01:02]} 7. d4 {[%clk 01:55:34]}
{[%emt 00:01:03]} e4 {[%clk 01:47:49]} {[%emt 00:03:56]} 8. Ne5 {[%clk
01:55:28]} {[%emt 00:00:21]} f5 {[%clk 01:46:25]} {[%emt 00:01:39]} 9. Nxc6
{[%clk 01:55:21]} {[%emt 00:00:22]} bxc6 {[%clk 01:46:35]} {[%emt 00:00:05]} 10.
Qc2 {[%clk 01:53:59]} {[%emt 00:01:37]} O-O {[%clk 01:45:18]} {[%emt 00:01:33]}
11. Qxc6 {[%clk 01:48:30]} {[%emt 00:05:44]} Rb8 {[%clk 01:43:58]} {[%emt
00:01:35]} 12. Nc3 {[%clk 01:41:04]} {[%emt 00:07:41]} Nb4 {[%clk 01:39:46]}
{[%emt 00:04:28]} 13. Qa4 {[%clk 01:40:28]} {[%emt 00:00:50]} Bd7 {[%clk
01:37:52]} {[%emt 00:02:09]} 14. Qd1 {[%clk 01:39:28]} {[%emt 00:01:14]} Be6
{[%clk 01:35:57]} {[%emt 00:02:10]} 15. f3 {[%clk 01:22:59]} {[%emt 00:16:44]}
c5 {[%clk 01:30:21]} {[%emt 00:05:52]} 16. d5 {[%clk 01:18:52]} {[%emt
00:04:21]} Nxd5 {[%clk 01:27:21]} {[%emt 00:03:15]} 17. Nxd5 {[%clk 01:18:53]}
{[%emt 00:00:14]} Qxd5 {[%clk 01:26:04]} {[%emt 00:01:32]} 18. Qxd5 {[%clk
01:13:15]} {[%emt 00:05:53]} Bxd5 {[%clk 01:25:24]} {[%emt 00:00:56]} 19. fxe4
{[%clk 01:13:15]} {[%emt 00:00:14]} Bxe4 {[%clk 01:24:42]} {[%emt 00:00:57]} 20.
Bxe4 {[%clk 01:13:18]} {[%emt 00:00:12]} fxe4 {[%clk 01:24:54]} {[%emt
00:00:03]} 21. Rxf8+ {[%clk 01:13:07]} {[%emt 00:00:26]} Kxf8 {[%clk 01:24:43]}
{[%emt 00:00:26]} 22. b3 {[%clk 01:12:38]} {[%emt 00:00:44]} c4 {[%clk
01:14:00]} {[%emt 00:10:58]} 23. Bf4 {[%clk 01:11:27]} {[%emt 00:01:25]} Rb4
{[%clk 01:11:26]} {[%emt 00:02:49]} 24. bxc4 {[%clk 01:06:36]} {[%emt
00:05:06]} Rxc4 {[%clk 01:10:53]} {[%emt 00:00:49]} 25. Rc1 {[%clk 01:05:50]}
{[%emt 00:01:01]} 1/2-1/2

[Event "BPB Limburg Open 2019 Group A"]
[Site "Maastricht, Netherlands"]
[Date "2019.06.09"]
[Round "5.8"]
[White "Anagnostopoulos, Konstantinos"]
[Black "Monroy, Charles"]
[Result "0-1"]
[TimeControl "2h + 15 sec/move"]
[WhiteFideId "4251067"]
[BlackFideId "621641"]
[WhiteElo "2325"]
[BlackElo "2432"]

1. c4 {[%clk 01:55:30]} {[%emt 00:04:59]} Nf6 {[%clk 02:00:11]} {[%emt
00:00:19]} 2. Nc3 {[%clk 01:55:39]} {[%emt 00:00:06]} e5 {[%clk 01:56:59]}
{[%emt 00:03:27]} 3. Nf3 {[%clk 01:55:16]} {[%emt 00:00:37]} Nc6 {[%clk
01:56:48]} {[%emt 00:00:27]} 4. e4 {[%clk 01:54:51]} {[%emt 00:00:40]} Bb4
{[%clk 01:54:37]} {[%emt 00:02:26]} 5. d3 {[%clk 01:54:58]} {[%emt 00:00:07]}
d6 {[%clk 01:53:50]} {[%emt 00:01:03]} 6. a3 {[%clk 01:55:08]} {[%emt
00:00:05]} Bc5 {[%clk 01:52:49]} {[%emt 00:01:16]} 7. b4 {[%clk 01:54:59]}
{[%emt 00:00:23]} Bb6 {[%clk 01:51:36]} {[%emt 00:01:28]} 8. Be3 {[%clk
01:50:33]} {[%emt 00:04:41]} O-O {[%clk 01:35:23]} {[%emt 00:16:29]} 9. Be2
{[%clk 01:50:10]} {[%emt 00:00:37]} Bg4 {[%clk 01:25:44]} {[%emt 00:09:54]} 10.
O-O {[%clk 01:43:48]} {[%emt 00:06:36]} Bxf3 {[%clk 01:25:10]} {[%emt
00:00:50]} 11. Bxf3 {[%clk 01:43:57]} {[%emt 00:00:05]} Nd4 {[%clk 01:24:46]}
{[%emt 00:00:40]} 12. g3 {[%clk 01:41:33]} {[%emt 00:02:37]} a5 {[%clk
01:18:37]} {[%emt 00:06:26]} 13. b5 {[%clk 01:37:03]} {[%emt 00:04:44]} c6
{[%clk 01:18:09]} {[%emt 00:00:44]} 14. Na4 {[%clk 01:30:54]} {[%emt 00:06:23]}
cxb5 {[%clk 00:58:27]} {[%emt 00:19:57]} 15. cxb5 {[%clk 01:30:59]} {[%emt
00:00:09]} Bc5 {[%clk 00:58:03]} {[%emt 00:00:39]} 16. Bg2 {[%clk 01:30:36]}
{[%emt 00:00:38]} b6 {[%clk 00:47:35]} {[%emt 00:10:44]} 17. Nc3 {[%clk
01:29:58]} {[%emt 00:00:52]} Ne6 {[%clk 00:46:29]} {[%emt 00:01:22]} 18. Bh3
{[%clk 01:22:10]} {[%emt 00:08:02]} Qe7 {[%clk 00:27:52]} {[%emt 00:18:53]} 19.
a4 {[%clk 01:20:01]} {[%emt 00:02:24]} Bd4 {[%clk 00:24:54]} {[%emt 00:03:13]}
20. Rc1 {[%clk 01:16:26]} {[%emt 00:03:49]} Bxc3 {[%clk 00:20:42]} {[%emt
00:04:27]} 21. Bxe6 {[%clk 01:05:20]} {[%emt 00:11:20]} Bb2 {[%clk 00:19:57]}
{[%emt 00:01:00]} 22. Bh3 {[%clk 01:05:31]} {[%emt 00:00:04]} Bxc1 {[%clk
00:14:54]} {[%emt 00:05:19]} 23. Qxc1 {[%clk 01:04:35]} {[%emt 00:01:11]} Rab8
{[%clk 00:12:48]} {[%emt 00:02:21]} 24. Qc6 {[%clk 01:03:59]} {[%emt 00:00:50]}
Qd8 {[%clk 00:12:53]} {[%emt 00:00:11]} 25. f4 {[%clk 01:00:30]} {[%emt
00:03:44]} Re8 {[%clk 00:12:32]} {[%emt 00:00:36]} 26. Rc1 {[%clk 00:58:16]}
{[%emt 00:02:29]} h5 {[%clk 00:11:44]} {[%emt 00:01:04]} 27. Qc7 {[%clk
00:56:44]} {[%emt 00:01:47]} Qxc7 {[%clk 00:09:02]} {[%emt 00:02:57]} 28. Rxc7
{[%clk 00:56:50]} {[%emt 00:00:08]} exf4 {[%clk 00:08:32]} {[%emt 00:00:45]} 29.
Bxf4 {[%clk 00:56:11]} {[%emt 00:00:53]} d5 {[%clk 00:08:45]} {[%emt 00:00:03]}
30. Bd7 {[%clk 00:37:44]} {[%emt 00:18:42]} Nxd7 {[%clk 00:06:14]} {[%emt
00:02:47]} 31. Rxd7 {[%clk 00:37:53]} {[%emt 00:00:06]} Rbd8 {[%clk 00:04:53]}
{[%emt 00:01:36]} 32. Rxd8 {[%clk 00:22:37]} {[%emt 00:15:31]} Rxd8 {[%clk
00:05:07]} {[%emt 00:00:01]} 33. Bc7 {[%clk 00:22:46]} {[%emt 00:00:05]} Rc8
{[%clk 00:05:16]} {[%emt 00:00:06]} 34. Bxb6 {[%clk 00:22:57]} {[%emt
00:00:04]} dxe4 {[%clk 00:05:28]} {[%emt 00:00:04]} 35. Bxa5 {[%clk 00:21:37]}
{[%emt 00:01:35]} exd3 {[%clk 00:05:08]} {[%emt 00:00:34]} 36. Kf2 {[%clk
00:19:13]} {[%emt 00:02:38]} Rc4 {[%clk 00:04:50]} {[%emt 00:00:34]} 0-1

[Event "BPB Limburg Open 2019 Group A"]
[Site "Maastricht, Netherlands"]
[Date "2019.06.09"]
[Round "5.9"]
[White "Dambacher, Martijn"]
[Black "Ernst, Sipke"]
[Result "1/2-1/2"]
[TimeControl "2h + 15 sec/move"]
[WhiteFideId "1005030"]
[BlackFideId "1004689"]
[WhiteElo "2511"]
[BlackElo "2541"]

1. d4 {[%clk 01:54:43]} {[%emt 00:05:46]} d6 {[%clk 01:59:42]} {[%emt
00:00:48]} 2. e4 {[%clk 01:53:18]} {[%emt 00:01:39]} g6 {[%clk 01:59:53]}
{[%emt 00:00:05]} 3. c4 {[%clk 01:52:12]} {[%emt 00:01:21]} Bg7 {[%clk
01:59:59]} {[%emt 00:00:09]} 4. Nc3 {[%clk 01:52:02]} {[%emt 00:00:25]} Nf6
{[%clk 01:59:33]} {[%emt 00:00:41]} 5. f3 {[%clk 01:51:29]} {[%emt 00:00:47]}
O-O {[%clk 01:59:44]} {[%emt 00:00:04]} 6. Nge2 {[%clk 01:51:12]} {[%emt
00:00:33]} e5 {[%clk 01:55:41]} {[%emt 00:04:19]} 7. d5 {[%clk 01:42:09]}
{[%emt 00:09:18]} a5 {[%clk 01:55:49]} {[%emt 00:00:07]} 8. Bg5 {[%clk
01:41:48]} {[%emt 00:00:36]} h6 {[%clk 01:55:36]} {[%emt 00:00:28]} 9. Be3
{[%clk 01:41:40]} {[%emt 00:00:22]} Na6 {[%clk 01:52:34]} {[%emt 00:03:17]} 10.
Qd2 {[%clk 01:35:40]} {[%emt 00:06:15]} h5 {[%clk 01:52:31]} {[%emt 00:00:18]}
11. g3 {[%clk 01:16:42]} {[%emt 00:19:13]} Nd7 {[%clk 01:52:14]} {[%emt
00:00:32]} 12. Bg2 {[%clk 01:12:23]} {[%emt 00:04:35]} Ndc5 {[%clk 01:49:35]}
{[%emt 00:02:54]} 13. O-O {[%clk 01:10:59]} {[%emt 00:01:39]} Bd7 {[%clk
01:49:27]} {[%emt 00:00:23]} 14. Nc1 {[%clk 00:44:33]} {[%emt 00:26:41]} f5
{[%clk 01:44:08]} {[%emt 00:05:34]} 15. exf5 {[%emt 00:05:54]} gxf5 {[%clk
01:38:36]} 16. Nd3 {[%clk 00:44:42]} {[%emt 00:00:14]} Nxd3 {[%clk 01:35:07]}
{[%emt 00:03:44]} 17. Qxd3 {[%clk 00:44:52]} {[%emt 00:00:05]} h4 {[%clk
01:34:23]} {[%emt 00:00:59]} 18. g4 {[%clk 00:40:07]} {[%emt 00:04:59]} Qe7
{[%clk 01:25:42]} {[%emt 00:08:56]} 19. Qe2 {[%clk 00:34:35]} {[%emt 00:05:47]}
Kh7 {[%clk 01:22:15]} {[%emt 00:03:42]} 20. gxf5 {[%clk 00:26:50]} {[%emt
00:08:00]} Bxf5 {[%clk 01:19:31]} {[%emt 00:02:59]} 21. Ne4 {[%clk 00:27:00]}
{[%emt 00:00:05]} Bh6 {[%clk 01:12:18]} {[%emt 00:07:28]} 22. Bxh6 {[%clk
00:23:31]} {[%emt 00:03:43]} Kxh6 {[%clk 01:12:30]} {[%emt 00:00:04]} 23. Qe3+
{[%clk 00:23:42]} {[%emt 00:00:04]} Kg7 {[%clk 01:11:20]} {[%emt 00:01:25]} 24.
Kh1 {[%clk 00:21:59]} {[%emt 00:01:58]} Kh8 {[%clk 00:55:14]} {[%emt 00:16:21]}
25. f4 {[%clk 00:22:08]} {[%emt 00:00:06]} h3 {[%clk 00:51:00]} {[%emt
00:04:30]} 26. Bxh3 {[%clk 00:19:44]} {[%emt 00:02:39]} Bxe4+ {[%clk 00:51:13]}
{[%emt 00:00:02]} 27. Qxe4 {[%clk 00:19:52]} {[%emt 00:00:07]} Qh4 {[%clk
00:51:26]} {[%emt 00:00:02]} 28. Be6 {[%clk 00:16:10]} {[%emt 00:03:57]} Nc5
{[%clk 00:37:01]} {[%emt 00:14:40]} 29. Qg2 {[%clk 00:12:15]} {[%emt 00:04:10]}
Nd3 {[%clk 00:27:46]} {[%emt 00:09:30]} 30. fxe5 {[%clk 00:12:09]} {[%emt
00:00:21]} dxe5 {[%clk 00:25:59]} {[%emt 00:02:03]} 31. Qg3 {[%clk 00:06:25]}
{[%emt 00:05:58]} Qe4+ {[%clk 00:23:15]} {[%emt 00:02:58]} 32. Qg2 {[%clk
00:06:00]} {[%emt 00:00:40]} Qh4 {[%clk 00:21:35]} {[%emt 00:01:55]} 33. Qh3
{[%clk 00:03:48]} {[%emt 00:02:27]} Qxh3 {[%clk 00:21:40]} {[%emt 00:00:10]} 34.
Bxh3 {[%clk 00:03:59]} {[%emt 00:00:04]} e4 {[%clk 00:21:19]} {[%emt 00:00:36]}
35. Bf5 {[%clk 00:03:05]} {[%emt 00:01:10]} Rf6 {[%clk 00:19:09]} {[%emt
00:02:24]} 36. h4 {[%clk 00:00:50]} {[%emt 00:02:30]} Raf8 {[%clk 00:18:41]}
{[%emt 00:00:44]} 37. Bh3 {[%clk 00:01:00]} {[%emt 00:00:05]} e3 {[%clk
00:14:44]} {[%emt 00:04:12]} 38. Rxf6 {[%clk 00:00:30]} {[%emt 00:00:45]} Rxf6
{[%clk 00:14:54]} {[%emt 00:00:05]} 39. Bf1 {[%clk 00:00:44]} Rxf1+ {[%clk
00:13:21]} {[%emt 00:01:48]} 40. Rxf1 {[%clk 00:00:54]} {[%emt 00:00:05]} e2
{[%clk 00:13:34]} {[%emt 00:00:02]} 41. Rg1 {[%clk 00:01:08]} e1=Q {[%clk
00:12:36]} {[%emt 00:01:14]} 42. Rxe1 {[%clk 00:01:22]} {[%emt 00:00:02]} Nxe1
{[%clk 00:12:46]} {[%emt 00:00:05]} 43. c5 {[%clk 00:01:36]} {[%emt 00:00:01]}
Kg7 {[%clk 00:09:06]} {[%emt 00:03:54]} 44. d6 {[%clk 00:01:43]} {[%emt
00:00:07]} cxd6 {[%clk 00:09:17]} {[%emt 00:00:05]} 45. cxd6 {[%clk 00:01:57]}
{[%emt 00:00:01]} Kf6 {[%clk 00:09:27]} {[%emt 00:00:05]} 46. h5 {[%clk
00:01:34]} {[%emt 00:00:38]} Nf3 {[%clk 00:06:51]} {[%emt 00:02:52]} 47. Kg2
{[%clk 00:01:28]} {[%emt 00:00:21]} Ne5 {[%clk 00:05:45]} {[%emt 00:01:21]} 48.
h6 {[%clk 00:00:28]} {[%emt 00:01:14]} Nf7 {[%clk 00:03:44]} {[%emt 00:02:17]}
49. d7 {[%clk 00:00:42]} {[%emt 00:00:01]} Kg6 {[%clk 00:03:33]} {[%emt
00:00:26]} 50. Kf3 {[%clk 00:00:55]} {[%emt 00:00:03]} Ne5+ {[%clk 00:03:39]}
{[%emt 00:00:08]} 51. Ke4 {[%clk 00:01:09]} {[%emt 00:00:01]} Nxd7 {[%clk
00:03:54]} 52. Kd5 {[%clk 00:01:23]} Nb6+ {[%clk 00:01:43]} {[%emt 00:02:26]}
53. Kc5 {[%clk 00:01:23]} {[%emt 00:00:15]} Nc8 {[%clk 00:01:48]} {[%emt
00:00:10]} 54. Kb5 {[%clk 00:01:36]} {[%emt 00:00:02]} Kxh6 {[%clk 00:02:02]}
55. Kxa5 {[%clk 00:01:50]} {[%emt 00:00:02]} Kg6 {[%clk 00:02:16]} {[%emt
00:00:01]} 56. Kb5 {[%clk 00:02:04]} {[%emt 00:00:02]} Kf6 {[%clk 00:02:29]}
{[%emt 00:00:01]} 57. a4 {[%clk 00:02:18]} {[%emt 00:00:01]} Ke6 {[%clk
00:02:12]} {[%emt 00:00:31]} 58. a5 {[%clk 00:02:32]} {[%emt 00:00:01]} Kd7
{[%clk 00:02:26]} {[%emt 00:00:01]} 59. a6 {[%clk 00:02:46]} {[%emt 00:00:02]}
bxa6+ {[%emt 00:00:11]} 1/2-1/2

[Event "BPB Limburg Open 2019 Group A"]
[Site "Maastricht, Netherlands"]
[Date "2019.06.09"]
[Round "5.10"]
[White "Warmerdam, Max"]
[Black "Van Foreest, Machteld"]
[Result "1-0"]
[TimeControl "2h + 15 sec/move"]
[WhiteFideId "1048104"]
[BlackFideId "1051563"]
[WhiteElo "2475"]
[BlackElo "2094"]

1. e4 {[%clk 02:00:16]} {[%emt 00:00:13]} e5 {[%clk 02:00:27]} {[%emt
00:00:04]} 2. Nf3 {[%clk 02:00:25]} {[%emt 00:00:05]} Nc6 {[%clk 02:00:40]}
{[%emt 00:00:03]} 3. Bb5 {[%clk 02:00:34]} {[%emt 00:00:06]} a6 {[%clk
02:00:52]} {[%emt 00:00:04]} 4. Ba4 {[%clk 02:00:44]} {[%emt 00:00:04]} Nf6
{[%clk 02:01:03]} {[%emt 00:00:04]} 5. d3 {[%clk 01:57:22]} {[%emt 00:03:36]}
d6 {[%clk 02:00:09]} {[%emt 00:01:09]} 6. c3 {[%clk 01:57:30]} {[%emt
00:00:08]} Be7 {[%clk 01:58:33]} {[%emt 00:01:51]} 7. O-O {[%clk 01:56:59]}
{[%emt 00:00:45]} O-O {[%clk 01:58:17]} {[%emt 00:00:30]} 8. Re1 {[%clk
01:56:32]} {[%emt 00:00:43]} Bg4 {[%clk 01:55:27]} {[%emt 00:03:05]} 9. h3
{[%clk 01:53:32]} {[%emt 00:03:15]} Bh5 {[%clk 01:48:45]} {[%emt 00:06:57]} 10.
Nbd2 {[%clk 01:52:52]} {[%emt 00:00:55]} Nd7 {[%clk 01:40:43]} {[%emt
00:08:18]} 11. Nf1 {[%clk 01:43:25]} {[%emt 00:09:41]} Nc5 {[%clk 01:37:23]}
{[%emt 00:03:35]} 12. Bxc6 {[%clk 01:39:25]} {[%emt 00:04:15]} bxc6 {[%clk
01:37:00]} {[%emt 00:00:38]} 13. Ng3 {[%clk 01:24:04]} {[%emt 00:15:35]} Bxf3
{[%clk 01:34:53]} {[%emt 00:02:22]} 14. Qxf3 {[%clk 01:21:27]} {[%emt
00:02:53]} Ne6 {[%clk 01:32:27]} {[%emt 00:02:41]} 15. Be3 {[%clk 01:20:50]}
{[%emt 00:00:51]} c5 {[%clk 01:30:38]} {[%emt 00:02:05]} 16. Rad1 {[%clk
01:20:16]} {[%emt 00:00:49]} Bg5 {[%clk 01:29:15]} {[%emt 00:01:38]} 17. Ne2
{[%clk 01:05:51]} {[%emt 00:14:40]} Qf6 {[%clk 01:26:02]} {[%emt 00:03:29]} 18.
Qxf6 {[%clk 01:02:01]} {[%emt 00:04:04]} Bxf6 {[%clk 01:25:20]} {[%emt
00:00:58]} 19. f4 {[%clk 01:01:49]} {[%emt 00:00:26]} exf4 {[%clk 01:22:26]}
{[%emt 00:03:10]} 20. Nxf4 {[%clk 01:01:46]} {[%emt 00:00:17]} Nxf4 {[%clk
01:21:12]} {[%emt 00:01:30]} 21. Bxf4 {[%clk 01:01:36]} {[%emt 00:00:25]} Rab8
{[%clk 01:18:35]} {[%emt 00:02:53]} 22. Rd2 {[%clk 01:00:33]} {[%emt 00:01:18]}
Rfe8 {[%clk 01:15:44]} {[%emt 00:03:06]} 23. Kf2 {[%clk 00:58:53]} {[%emt
00:01:54]} h5 {[%clk 01:12:21]} {[%emt 00:03:38]} 24. Kf3 {[%clk 00:56:17]}
{[%emt 00:02:50]} Re6 {[%clk 01:08:49]} {[%emt 00:03:46]} 25. Rc1 {[%clk
00:48:15]} {[%emt 00:08:18]} Be5 {[%clk 01:07:28]} {[%emt 00:01:37]} 26. g3
{[%clk 00:39:34]} {[%emt 00:08:56]} Bxf4 {[%clk 01:05:01]} {[%emt 00:02:42]} 27.
gxf4 {[%clk 00:38:24]} {[%emt 00:01:24]} Rbe8 {[%clk 01:04:29]} {[%emt
00:00:46]} 28. Re1 {[%clk 00:21:54]} {[%emt 00:16:45]} Kf8 {[%clk 01:00:07]}
{[%emt 00:04:38]} 29. Rg2 {[%clk 00:18:49]} {[%emt 00:03:19]} g6 {[%clk
00:50:29]} {[%emt 00:09:53]} 30. Rge2 {[%clk 00:17:20]} {[%emt 00:01:45]} c6
{[%clk 00:46:15]} {[%emt 00:04:29]} 31. d4 {[%clk 00:14:19]} {[%emt 00:03:15]}
R6e7 {[%clk 00:42:16]} {[%emt 00:04:14]} 32. dxc5 {[%clk 00:13:56]} {[%emt
00:00:39]} dxc5 {[%clk 00:41:17]} {[%emt 00:01:14]} 33. Rd1 {[%clk 00:13:48]}
{[%emt 00:00:22]} Rb8 {[%clk 00:36:11]} {[%emt 00:05:21]} 34. Rd6 {[%clk
00:11:34]} {[%emt 00:02:28]} Reb7 {[%clk 00:35:20]} {[%emt 00:01:04]} 35. b3
{[%clk 00:10:41]} {[%emt 00:01:11]} c4 {[%clk 00:32:02]} {[%emt 00:03:33]} 36.
b4 {[%clk 00:09:49]} {[%emt 00:01:07]} a5 {[%clk 00:30:18]} {[%emt 00:01:59]}
37. bxa5 {[%clk 00:07:02]} {[%emt 00:03:01]} Rb2 {[%clk 00:29:54]} {[%emt
00:00:38]} 38. Rxc6 {[%clk 00:06:36]} {[%emt 00:00:42]} Rxe2 {[%clk 00:27:54]}
{[%emt 00:02:15]} 39. Kxe2 {[%clk 00:06:49]} {[%emt 00:00:02]} Rb2+ {[%clk
00:27:53]} {[%emt 00:00:16]} 40. Ke3 {[%clk 00:06:56]} {[%emt 00:00:09]} Rxa2
{[%clk 00:28:01]} {[%emt 00:00:07]} 41. a6 {[%clk 00:07:03]} {[%emt 00:00:09]}
Ke7 {[%clk 00:27:09]} {[%emt 00:01:06]} 42. Kd4 {[%clk 00:07:07]} {[%emt
00:00:10]} Ra4 {[%clk 00:27:15]} {[%emt 00:00:09]} 43. Kc5 {[%clk 00:06:42]}
{[%emt 00:00:40]} Kd7 {[%clk 00:26:49]} {[%emt 00:00:41]} 44. Rf6 {[%clk
00:06:34]} {[%emt 00:00:23]} 1-0